bitfinex-derivatives/quotes_BNBF0:USTF0_20250609
["timestamp","ask_amount","ask_price","bid_price","bid_amount"]
[1749503406233,1.372,663.37,662.97,1.49786835]
[1749503406537,1.372,663.37,662.94,1.49786835]
[1749503406737,1.372,663.37,662.9,1.49786835]
[1749503406937,1.372,663.37,661.81,5.27810326]
[1749503406938,1.372,663.37,662.91,1.49786835]
[1749503407238,1.372,663.37,662.94,1.49786835]
[1749503407436,1.372,663.37,663.17,1.11870645]
[1749503407738,1.372,663.37,663.19,1.11870645]
[1749503408139,1.372,663.37,661.86,5.27810326]
[1749503408140,1.372,663.37,663.21,1.11870645]
[1749503408539,1.372,663.37,663.15,1.11870645]
[1749503408735,1.372,663.37,663.18,1.11870645]
[1749503409239,1.372,663.37,663.24,1.11870645]
[1749503409538,1.372,663.37,663.27,1.11870645]
[1749503409738,1.372,663.37,663.11,1.49786835]
[1749503409739,1.372,663.37,663.29,1.11870645]
[1749503409935,1.372,663.37,663.26,1.11870645]
[1749503410435,1.372,663.37,663.15,1.11870645]
[1749503411139,1.372,663.37,663.1,1.11870645]
[1749503411433,1.372,663.37,663.09,1.11870645]
[1749503411838,1.372,663.37,663.1,1.11870645]
[1749503412239,1.372,663.37,663.15,1.11870645]
[1749503412438,1.372,663.37,663.16,1.11870645]
[1749503412635,1.372,663.37,663.15,1.11870645]
[1749503413342,1.372,663.37,663.13,1.11870645]
[1749503413538,1.372,663.37,663.31,1.11870645]
[1749503413738,1.372,663.37,663.32,1.11870645]
[1749503414242,1.372,663.37,663.31,1.11870645]
[1749503414537,1.372,663.37,663.32,1.11870645]
[1749503414940,1.372,663.37,663.34,1.11870645]
[1749503415239,1.372,663.37,663.33,1.11870645]
[1749503415441,1.372,663.37,663.34,1.11870645]
[1749503416242,1.372,663.37,663.32,1.11870645]
[1749503417043,1.372,663.37,663.34,1.11870645]
[1749503417542,1.372,663.37,663.33,1.11870645]
[1749503418238,1.372,663.37,663.34,1.11870645]
[1749503418441,1.372,663.37,663.33,1.11870645]
[1749503419044,1.372,663.37,663.34,1.11870645]
[1749503419341,1.372,663.37,663.33,1.11870645]
[1749503419545,1.372,663.37,663.32,1.11870645]
[1749503419743,1.372,663.37,663.33,1.11870645]
[1749503420345,1.372,663.37,663.32,1.11870645]
[1749503420846,1.372,663.37,663.33,1.11870645]
[1749503421245,1.372,663.37,663.31,1.11870645]
[1749503421444,1.372,663.37,663.33,1.11870645]
[1749503422846,1.372,663.37,663.18,1.49786835]
[1749503422847,1.372,663.37,663.34,1.11870645]
[1749503423047,1.372,663.37,663.33,1.11870645]
[1749503423243,1.372,663.37,663.32,1.11870645]
[1749503423846,1.372,663.37,663.33,1.11870645]
[1749503424049,1.372,663.37,663.22,1.11870645]
[1749503424244,1.372,663.37,663.21,1.11870645]
[1749503425546,1.372,663.37,663.34,1.11870645]
[1749503425945,1.372,663.37,663.35,1.11870645]
[1749503426147,1.372,663.37,663.34,1.11870645]
[1749503426346,1.372,663.37,663.32,1.11870645]
[1749503427050,1.372,663.37,663.31,1.11870645]
[1749503427248,1.372,663.37,663.17,1.49786835]
[1749503427249,1.372,663.37,663.32,1.11870645]
[1749503427449,1.372,663.37,663.18,1.49786835]
[1749503427450,1.372,663.37,663.31,1.11870645]
[1749503427649,1.372,663.37,663.32,1.11870645]
[1749503428548,1.372,663.37,663.34,1.11870645]
[1749503428752,1.372,663.37,663.29,1.11870645]
[1749503430248,1.372,663.37,663.28,1.11870645]
[1749503431453,1.372,663.37,663.27,1.11870645]
[1749503432249,1.372,663.37,663.13,1.11870645]
[1749503432754,1.372,663.37,662.97,1.49786835]
[1749503432955,1.372,663.37,662.98,0.30166822]
[1749503436450,1.372,663.37,662.79,1.49786835]
[1749503436650,1.372,663.37,662.82,1.49786835]
[1749503437153,1.372,663.37,662.81,1.49786835]
[1749503437351,1.372,663.37,662.82,1.49786835]
[1749503438555,1.372,663.37,662.7,1.49786835]
[1749503438759,1.372,663.37,662.65,1.49786835]
[1749503438956,1.372,663.37,662.64,1.49786835]
[1749503439458,1.372,663.37,662.65,1.49786835]
[1749503439656,1.372,663.37,662.64,1.49786835]
[1749503440158,1.372,663.37,662.66,1.49786835]
[1749503440353,1.372,663.37,662.69,1.49786835]
[1749503440553,1.372,663.37,662.8,1.49786835]
[1749503442056,1.372,663.37,662.71,1.49786835]
[1749503442258,1.372,663.37,662.7,1.49786835]
[1749503442960,1.372,663.37,662.68,1.49786835]
[1749503443159,1.372,663.37,662.67,1.49786835]
[1749503443360,1.372,663.37,661.6,5.27810326]
[1749503443361,1.372,663.37,662.71,1.49786835]
[1749503443566,1.372,663.37,662.72,1.49786835]
[1749503443760,1.372,663.37,662.71,1.49786835]
[1749503445061,1.372,663.37,662.69,1.49786835]
[1749503446066,1.372,663.37,662.55,2.26204425]
[1749503446067,1.372,663.37,662.85,1.11720739]
[1749503446267,1.372,663.37,662.83,1.11720739]
[1749503446566,1.372,663.37,662.84,1.11720739]
[1749503446766,1.372,663.37,662.83,1.11720739]
[1749503446964,1.372,663.37,662.84,1.11720739]
[1749503447363,1.372,663.37,662.83,1.11720739]
[1749503448264,1.372,663.37,662.84,1.11720739]
[1749503449165,1.372,663.37,662.87,1.11720739]
[1749503449666,1.372,663.37,662.88,1.11720739]
[1749503449970,1.366,663.48,662.88,1.11720739]
[1749503451270,1.366,663.48,662.86,1.11720739]
[1749503451467,1.366,663.48,662.66,1.11720739]
[1749503452367,1.366,663.48,662.63,1.11720739]
[1749503452567,1.29,663.47,662.64,1.11720739]
[1749503452872,3.94897524,663.47,662.64,1.11720739]
[1749503453071,2.65897524,663.46,662.64,1.11720739]
[1749503453271,2.65797849,663.45,662.62,1.11720739]
[1749503453467,2.65797866,663.44,662.62,1.11720739]
[1749503453672,1.48851733,663.43,662.62,1.11720739]
[1749503453870,2.65790285,663.46,662.63,1.11720739]
[1749503454069,1.66224204,663.45,662.63,1.11720739]
[1749503454370,2.65790454,663.46,662.62,1.11720739]
[1749503454570,0.49285889,663.45,662.62,1.11720739]
[1749503454968,0.49285889,663.45,662.61,1.11720739]
[1749503455169,1.16821655,663.46,662.63,1.11720739]
[1749503455374,2.65491689,663.46,662.61,1.11720739]
[1749503455568,1.66046077,663.45,662.61,1.11720739]
[1749503455769,1.16793474,663.46,662.62,1.11720739]
[1749503455970,0.49223888,663.46,662.62,1.11720739]
[1749503456171,1.29,663.47,662.62,1.11720739]
[1749503456375,1.29,663.47,662.61,1.11720739]
[1749503456771,1.29,663.47,662.6,1.11720739]
[1749503457072,1.29,663.47,662.61,1.11720739]
[1749503457476,1.29,663.47,662.6,1.11720739]
[1749503457877,1.29,663.47,662.59,1.11720739]
[1749503458171,1.604,663.46,662.59,1.11720739]
[1749503458373,2.09582171,663.46,662.59,1.11720739]
[1749503458571,4.2572378,663.46,662.59,1.11720739]
[1749503458869,0.4918202,663.45,662.59,1.11720739]
[1749503459074,2.59743009,663.46,662.59,1.11720739]
[1749503459271,0.49181952,663.45,662.59,1.11720739]
[1749503459473,1.16693796,663.45,662.58,1.11720739]
[1749503459674,2.65218626,663.45,662.58,1.11720739]
[1749503459876,1.65875748,663.44,662.58,1.11720739]
[1749503460172,0.49181952,663.44,662.58,1.11720739]
[1749503460473,1.65879957,663.44,662.58,1.11720739]
[1749503460673,0.49171182,663.44,662.58,1.11720739]
[1749503460875,1.16698093,663.44,662.58,1.11720739]
[1749503461077,1.604,663.46,662.58,1.11720739]
[1749503461274,2.59769983,663.46,662.58,1.11720739]
[1749503461475,2.65192402,663.45,662.57,1.11720739]
[1749503461677,0.49157318,663.44,662.57,1.11720739]
[1749503461874,0.49157318,663.44,662.58,1.11720739]
[1749503462075,0.49157318,663.44,662.57,1.11720739]
[1749503462275,0.99370336,663.45,662.57,1.11720739]
[1749503462578,1.65810213,663.45,662.57,1.11720739]
[1749503462777,2.15987284,663.45,662.56,1.11720739]
[1749503462977,0.49142723,663.44,662.57,1.11720739]
[1749503463274,2.6507173,663.45,662.56,1.11720739]
[1749503463575,0.4914287,663.44,662.56,1.11720739]
[1749503463773,0.4914287,663.44,662.48,1.11720739]
[1749503463978,0.99275668,663.44,662.48,1.11720739]
[1749503464278,0.49126554,663.45,662.46,1.11720739]
[1749503464472,1.65699769,663.45,662.46,1.11720739]
[1749503464673,1.16533868,663.45,662.47,1.11720739]
[1749503464877,1.65644759,663.45,662.51,1.11720739]
[1749503465075,1.65644759,663.45,662.08,0.26240386]
[1749503465076,2.64735932,663.45,662.49,1.11720739]
[1749503465276,0.49110693,663.44,662.49,1.11720739]
[1749503465475,0.49110693,663.44,662.48,1.11720739]
[1749503465877,0.49111358,663.44,662.47,1.11720739]
[1749503466073,1.48203397,663.45,662.47,1.11720739]
[1749503466279,1.604,663.46,662.47,1.11720739]
[1749503466481,3.26060515,663.46,662.47,1.11720739]
[1749503466776,2.64752405,663.45,662.48,1.11720739]
[1749503466979,0.49111207,663.44,662.48,1.11720739]
[1749503467473,0.49084324,663.44,662.48,1.11720739]
[1749503467679,1.65569919,663.44,662.48,1.11720739]
[1749503467879,1.604,663.46,662.48,1.11720739]
[1749503468080,3.08636568,663.46,662.48,1.11720739]
[1749503468277,1.604,663.46,662.49,1.11720739]
[1749503468481,3.08636361,663.46,662.48,1.11720739]
[1749503468781,1.48236361,663.45,662.48,1.11720739]
[1749503468980,2.64722043,663.45,662.48,1.11720739]
[1749503469177,1.65459962,663.44,662.48,1.11720739]
[1749503469378,1.604,663.46,662.48,1.11720739]
[1749503469577,1.604,663.46,662.46,1.11720739]
[1749503469777,3.25860101,663.46,662.45,1.11720739]
[1749503470080,0.98973788,663.45,662.45,1.11720739]
[1749503470276,2.15414564,663.45,662.42,1.11720739]
[1749503470480,2.15414564,663.45,662.37,1.11720739]
[1749503470481,2.15414564,663.44,662.37,1.11720739]
[1749503470676,2.64434107,663.43,662.36,1.11720739]
[1749503470877,2.64434107,663.42,662.36,1.11720739]
[1749503471178,2.15060363,663.41,662.36,1.11720739]
[1749503471479,2.64045147,663.4,662.34,1.11720739]
[1749503471682,1.64927389,663.39,662.34,1.11720739]
[1749503471982,2.64012122,663.45,662.34,1.11720739]
[1749503472176,2.64012122,663.45,662.08,0.26240386]
[1749503472177,0.4897208,663.44,662.35,1.11720739]
[1749503472377,0.4897208,663.44,662.34,1.11720739]
[1749503472778,2.63968874,663.45,662.34,1.11720739]
[1749503472982,2.63868407,663.44,662.34,1.11720739]
[1749503473282,1.604,663.46,662.34,1.11720739]
[1749503473477,2.76267555,663.46,662.33,1.11720739]
[1749503473682,1.15867706,663.45,662.33,1.11720739]
[1749503473884,0.48950116,663.45,662.33,1.11720739]
[1749503474084,2.63868106,663.45,662.43,1.11720739]
[1749503474378,2.1491799,663.45,662.43,1.11720739]
[1749503474683,2.14943849,663.44,662.44,1.11720739]
[1749503474879,0.99072896,663.43,662.45,1.11720739]
[1749503475079,1.604,663.46,662.44,1.11720739]
[1749503475383,3.25245818,663.46,662.44,1.11720739]
[1749503475582,2.14975689,663.45,662.44,1.11720739]
[1749503475780,0.99095003,663.44,662.44,1.11720739]
[1749503475984,2.14982691,663.45,662.44,1.11720739]
[1749503476280,2.14982691,663.45,662.45,1.11720739]
[1749503476482,2.15097348,663.44,662.45,1.11720739]
[1749503476680,1.604,663.46,662.45,1.11720739]
[1749503476981,3.08535845,663.46,662.46,1.11720739]
[1749503477182,2.15097815,663.45,662.46,1.11720739]
[1749503477486,2.15097822,663.44,662.46,1.11720739]
[1749503477684,2.15097822,663.44,662.31,1.49786835]
[1749503477685,2.15097822,663.43,662.47,1.11720739]
[1749503477983,2.15097822,663.42,662.47,1.11720739]
[1749503478185,1.15918136,663.41,662.47,1.11720739]
[1749503478383,1.604,663.46,662.47,1.11720739]
[1749503478384,0.489607,663.45,662.47,1.11720739]
[1749503478583,1.48090921,663.45,662.47,1.11720739]
[1749503478886,0.99113691,663.45,662.47,1.11720739]
[1749503479083,0.49002743,663.45,662.47,1.11720739]
[1749503479287,2.64083584,663.45,662.31,1.49786835]
[1749503479484,2.15080841,663.45,662.32,0.30196883]
[1749503479684,0.49008777,663.44,662.32,0.30196883]
[1749503479887,0.49008789,663.44,662.32,0.30196883]
[1749503480088,0.99113691,663.45,662.32,0.30196883]
[1749503480288,1.29,663.47,662.4,1.11325879]
[1749503480485,1.29,663.47,662.44,1.11325879]
[1749503480684,1.29,663.47,662.43,1.11325879]
[1749503481087,1.29,663.47,662.44,1.11325879]
[1749503481284,1.29,663.47,662.53,1.11325879]
[1749503481490,1.29,663.47,662.52,1.11325879]
[1749503482187,1.29,663.47,662.55,1.11325879]
[1749503482393,1.29,663.47,662.56,1.11325879]
[1749503482586,2.64640478,663.75,662.57,1.11325879]
[1749503482891,2.94772758,663.74,662.57,1.11325879]
[1749503483085,2.94773212,663.73,662.57,1.11325879]
[1749503483292,2.94773212,663.73,662.32,0.30196883]
[1749503483293,1.78610944,663.72,662.61,1.11325879]
[1749503483495,1.78607466,663.72,662.61,1.11325879]
[1749503483692,0.30133188,663.72,662.61,1.11325879]
[1749503483892,0.30133188,663.72,662.78,1.11325879]
[1749503484197,1.161,663.71,662.82,1.11325879]
[1749503484391,1.161,663.71,662.83,1.11325879]
[1749503485092,1.266,663.7,662.83,1.11325879]
[1749503485293,1.266,663.7,662.85,1.11325879]
[1749503485593,2.75496579,663.7,662.85,1.11325879]
[1749503485797,2.653816,663.69,662.85,1.11325879]
[1749503485996,1.16485021,663.68,662.85,1.11325879]
[1749503486198,2.65445697,663.69,662.86,1.11325879]
[1749503486394,0.49091033,663.68,662.86,1.11325879]
[1749503486698,0.49091107,663.68,662.86,1.11325879]
[1749503486993,2.16354897,663.69,662.87,1.11325879]
[1749503487295,1.266,663.7,662.95,1.11325879]
[1749503487296,2.16368372,663.68,662.95,1.11325879]
[1749503487494,1.16566555,663.67,662.96,1.11325879]
[1749503487692,2.16586674,663.69,662.95,1.11325879]
[1749503487896,2.16586674,663.69,662.96,1.11325879]
[1749503488092,2.16586674,663.69,662.97,1.11325879]
[1749503488398,2.16586674,663.69,662.99,1.11325879]
[1749503488596,2.16586674,663.69,662.84,1.49786835]
[1749503488597,1.00020987,663.69,663.01,1.11325879]
[1749503488794,3.43187195,663.7,663.02,1.11325879]
[1749503488995,1.16564877,663.69,663.06,1.11325879]
[1749503489194,1.266,663.7,663.07,1.11325879]
[1749503489397,1.266,663.7,662.32,0.30196883]
[1749503489398,1.266,663.7,663.08,1.11325879]
[1749503489599,2.27100527,663.7,663.08,1.11325879]
[1749503489793,1.0049968,663.69,663.03,1.11325879]
[1749503489993,2.27099655,663.7,663.03,1.11325879]
[1749503490198,2.27099655,663.7,663.05,1.11325879]
[1749503490397,1.00500188,663.69,663.04,1.11325879]
[1749503490596,2.27100188,663.7,663.04,1.11325879]
[1749503490899,1.266,663.7,663.04,1.11325879]
[1749503491096,1.266,663.7,663.03,1.11325879]
[1749503491301,3.44461455,663.7,663.05,1.11325879]
[1749503491501,2.17861455,663.69,663.03,1.11325879]
[1749503491702,2.17861455,663.69,663.04,1.11325879]
[1749503492103,2.17861455,663.69,663.05,1.11325879]
[1749503492299,1.00669257,663.69,663.08,1.11325879]
[1749503492503,1.266,663.7,663.08,1.11325879]
[1749503492705,2.43901188,663.7,663.06,1.11325879]
[1749503492904,1.266,663.7,663.07,1.11325879]
[1749503493704,1.266,663.7,663.04,1.11325879]
[1749503493902,2.44132486,663.7,663.04,1.11325879]
[1749503494102,1.266,663.7,663.04,1.11325879]
[1749503494401,2.2759851,663.7,663.04,1.11325879]
[1749503494606,1.266,663.7,663.04,1.11325879]
[1749503494806,1.266,663.7,663.05,1.11325879]
[1749503495002,1.266,663.7,663.13,1.11325879]
[1749503495408,1.266,663.7,663.12,1.11325879]
[1749503495603,1.266,663.7,663.11,1.11325879]
[1749503495906,1.266,663.7,663.14,1.11325879]
[1749503496305,1.266,663.7,663.15,1.11325879]
[1749503496910,1.266,663.7,663.13,1.11325879]
[1749503497508,1.266,663.7,662.32,0.30196883]
[1749503497509,1.266,663.7,663.12,1.11325879]
[1749503498914,1.266,663.7,663.16,1.11325879]
[1749503499509,1.266,663.7,663.15,1.11325879]
[1749503499907,1.266,663.7,663.14,1.11325879]
[1749503500511,1.266,663.7,663.13,1.11325879]
[1749503501111,1.266,663.7,662.32,0.30196883]
[1749503501112,1.266,663.7,663.11,1.11325879]
[1749503501412,1.266,663.7,663.1,1.11325879]
[1749503501608,1.266,663.7,663.06,1.11325879]
[1749503502513,1.266,663.7,663.04,1.11325879]
[1749503502711,2.45021614,663.7,663.05,1.11325879]
[1749503502914,2.19390927,663.69,663.04,1.11325879]
[1749503503210,1.18403512,663.68,663.04,1.11325879]
[1749503503514,1.00968663,663.69,663.04,1.11325879]
[1749503503713,3.45972245,663.7,663.02,1.11325879]
[1749503503915,2.19372245,663.69,663.02,1.11325879]
[1749503504808,1.00968663,663.69,663.02,1.11325879]
[1749503505010,2.27568663,663.7,663.02,1.11325879]
[1749503505213,1.18335209,663.69,663.02,1.11325879]
[1749503505513,1.00905225,663.69,663.0,1.11325879]
[1749503505709,2.19240336,663.69,662.98,1.11325879]
[1749503505912,2.19240336,663.69,662.99,1.11325879]
[1749503506113,2.19240336,663.69,662.98,1.11325879]
[1749503506315,2.19186153,663.68,662.97,1.11325879]
[1749503506512,2.1880709,663.67,662.97,1.11325879]
[1749503506811,1.266,663.7,662.98,1.11325879]
[1749503507112,1.266,663.7,662.97,1.11325879]
[1749503507816,2.2750099,663.7,662.97,1.11325879]
[1749503508012,2.18830105,663.69,662.95,1.11325879]
[1749503508211,1.266,663.7,662.94,1.11325879]
[1749503508517,2.44531973,663.7,662.94,1.11325879]
[1749503508712,1.266,663.7,662.94,1.11325879]
[1749503509212,2.27286379,663.7,662.94,1.11325879]
[1749503509419,1.00686379,663.69,662.94,1.11325879]
[1749503509617,2.18588473,663.69,662.94,1.11325879]
[1749503510112,1.17902094,663.69,662.94,1.11325879]
[1749503510414,3.4511068,663.7,662.94,1.11325879]
[1749503510612,1.17883403,663.69,662.94,1.11325879]
[1749503510913,1.17883463,663.69,662.94,1.11325879]
[1749503511216,2.18491895,663.69,662.94,1.11325879]
[1749503511416,1.17883329,663.68,662.94,1.11325879]
[1749503511713,3.45091763,663.7,662.94,1.11325879]
[1749503511917,2.18488325,663.69,662.93,1.11325879]
[1749503512120,1.00608307,663.69,662.93,1.11325879]
[1749503512416,1.00559573,663.7,662.93,1.11325879]
[1749503512613,2.1843966,663.7,662.94,1.11325879]
[1749503512815,2.1843966,663.69,662.94,1.11325879]
[1749503513016,2.18451647,663.68,662.94,1.11325879]
[1749503513219,1.17880087,663.67,662.94,1.11325879]
[1749503513411,2.18451647,663.7,662.94,1.11325879]
[1749503513612,1.0057156,663.7,662.94,1.11325879]
[1749503513814,2.184275,663.7,662.94,1.11325879]
[1749503514012,2.184275,663.69,662.94,1.11325879]
[1749503514216,1.17894137,663.68,662.94,1.11325879]
[1749503514417,2.184275,663.7,662.95,1.11325879]
[1749503514813,1.16839706,663.69,662.95,1.11325879]
[1749503515017,2.17373069,663.7,662.95,1.11325879]
[1749503515217,1.00533363,663.7,662.95,1.11325879]
[1749503515419,1.407,663.68,662.95,1.11325879]
[1749503516111,3.58185153,663.68,662.95,1.11325879]
[1749503516313,2.17485153,663.67,662.95,1.11325879]
[1749503516718,1.16840347,663.67,662.95,1.11325879]
[1749503516912,2.17479067,663.67,662.95,1.11325879]
[1749503517116,2.17465608,663.66,662.95,1.11325879]
[1749503517316,2.17465608,663.65,662.95,1.11325879]
[1749503517522,1.0063872,663.64,662.95,1.11325879]
[1749503517719,2.17465643,663.67,662.95,1.11325879]
[1749503518014,1.00476324,663.66,662.98,1.11325879]
[1749503518318,2.17303247,663.67,662.98,1.11325879]
[1749503518618,2.17321859,663.66,662.98,1.11325879]
[1749503518813,1.16845403,663.65,662.98,1.11325879]
[1749503519015,1.1684534,663.67,662.98,1.11325879]
[1749503519215,1.0049115,663.67,662.98,1.11325879]
[1749503519419,1.1684534,663.67,662.99,1.11325879]
[1749503519618,3.58036292,663.68,662.99,1.11325879]
[1749503519816,1.00491051,663.67,662.99,1.11325879]
[1749503520017,1.407,663.68,662.99,1.11325879]
[1749503520822,3.5798486,663.68,662.99,1.11325879]
[1749503521020,2.1728486,663.67,662.99,1.11325879]
[1749503521218,1.00460539,663.66,662.99,1.11325879]
[1749503521419,2.17302073,663.67,663.01,1.11325879]
[1749503521918,2.17392262,663.66,663.01,1.11325879]
[1749503522119,2.17392425,663.65,663.01,1.11325879]
[1749503522319,1.00460702,663.67,663.02,1.11325879]
[1749503522522,1.16931756,663.67,663.03,1.11325879]
[1749503522722,1.16931756,663.67,663.02,1.11325879]
[1749503523020,1.16931756,663.67,663.03,1.11325879]
[1749503523223,1.16951098,663.67,663.02,1.11325879]
[1749503523423,1.00511096,663.67,663.02,1.11325879]
[1749503523622,1.00511072,663.67,663.02,1.11325879]
[1749503523921,1.602,663.66,663.02,1.11325879]
[1749503524220,3.77688358,663.66,663.02,1.11325879]
[1749503524424,2.17488358,663.65,663.02,1.11325879]
[1749503524722,1.16965103,663.65,663.03,1.11325879]
[1749503524921,1.16924833,663.65,663.03,1.11325879]
[1749503525121,1.16924454,663.65,663.04,1.11325879]
[1749503525326,1.602,663.66,663.03,1.11325879]
[1749503525526,1.602,663.66,663.02,1.11325879]
[1749503525826,3.77520273,663.66,663.02,1.11325879]
[1749503526019,1.16924415,663.65,663.02,1.11325879]
[1749503526423,1.00598009,663.65,663.02,1.11325879]
[1749503526625,2.60798009,663.66,663.02,1.11325879]
[1749503526827,2.17522947,663.65,663.02,1.11325879]
[1749503527026,1.00598009,663.65,663.02,1.11325879]
[1749503527225,1.602,663.66,663.02,1.11325879]
[1749503527424,1.602,663.66,663.03,1.11325879]
[1749503527624,3.77812005,663.66,663.03,1.11325879]
[1749503527824,1.16972842,663.65,663.03,1.11325879]
[1749503528130,1.602,663.66,663.03,1.11325879]
[1749503528327,1.602,663.66,663.02,1.11325879]
[1749503528528,3.77617403,663.66,663.03,1.11325879]
[1749503528732,1.16992871,663.65,663.03,1.11325879]
[1749503528928,1.602,663.66,663.02,1.11325879]
[1749503529132,1.602,663.66,663.03,1.11325879]
[1749503529433,3.77737628,663.66,663.03,1.11325879]
[1749503529732,1.17057183,663.65,663.03,1.11325879]
[1749503529932,1.17067573,663.65,663.03,1.11325879]
[1749503530327,1.602,663.66,663.03,1.11325879]
[1749503530533,2.60504013,663.66,663.04,1.11325879]
[1749503530731,1.17067658,663.65,663.04,1.11325879]
[1749503531032,2.66752536,663.65,662.9,1.11325879]
[1749503531228,2.66752536,663.64,662.91,1.11325879]
[1749503531429,1.00303923,663.63,662.92,1.11325879]
[1749503531632,2.66751788,663.65,662.92,1.11325879]
[1749503531828,1.00372422,663.64,662.91,1.11325879]
[1749503532128,1.00480546,663.65,662.91,1.11325879]
[1749503532328,2.67110146,663.65,662.91,1.11325879]
[1749503532527,2.67110146,663.65,662.73,1.49786835]
[1749503532528,2.67110146,663.64,662.93,1.11325879]
[1749503532732,2.67110146,663.63,662.93,1.11325879]
[1749503532933,1.17220048,663.62,662.94,1.11325879]
[1749503533135,2.17710903,663.65,662.97,1.11325879]
[1749503533331,1.00482788,663.64,662.99,1.11325879]
[1749503533632,1.17215684,663.65,663.0,1.11325879]
[1749503533935,1.602,663.66,663.04,1.11325879]
[1749503534231,2.77410057,663.66,663.07,1.11325879]
[1749503534435,1.602,663.66,663.07,1.11325879]
[1749503534636,1.602,663.66,661.66,5.27810326]
[1749503534637,1.602,663.66,663.1,1.11325879]
[1749503535137,1.602,663.66,663.11,1.11325879]
[1749503535331,1.602,663.66,663.12,1.11325879]
[1749503536536,1.602,663.66,663.17,1.11325879]
[1749503537334,1.602,663.66,663.18,1.11325879]
[1749503537538,1.602,663.66,663.19,1.11325879]
[1749503537939,1.602,663.66,663.2,1.11325879]
[1749503538437,1.602,663.66,663.21,1.11325879]
[1749503538837,1.602,663.66,663.24,1.11325879]
[1749503539440,1.602,663.66,662.45,3.77007376]
[1749503539441,1.602,663.66,663.26,1.11325879]
[1749503540542,1.602,663.66,663.28,1.12182081]
[1749503541037,1.602,663.66,663.27,1.12182081]
[1749503541244,1.602,663.66,663.23,1.12182081]
[1749503541542,1.602,663.66,662.23,5.27810326]
[1749503541543,1.602,663.66,663.24,1.12182081]
[1749503541743,4.28270041,663.66,663.22,1.12182081]
[1749503541942,1.1747677,663.65,663.22,1.12182081]
[1749503542438,1.602,663.66,663.23,1.12182081]
[1749503542938,4.28406323,663.66,663.23,1.12182081]
[1749503543138,2.18538368,663.65,663.23,1.12182081]
[1749503543338,1.17481212,663.64,663.24,1.12182081]
[1749503543537,1.17481212,663.65,663.24,1.12182081]
[1749503543743,1.01057156,663.65,663.24,1.12182081]
[1749503543940,3.78738368,663.66,663.24,1.12182081]
[1749503544145,2.18538368,663.65,663.24,1.12182081]
[1749503544543,1.17402804,663.64,663.25,1.12182081]
[1749503544745,2.1846639,663.65,663.25,1.12182081]
[1749503544939,1.602,663.66,663.25,1.12182081]
[1749503545341,4.28336032,663.66,663.25,1.12182081]
[1749503545541,2.18466165,663.65,663.25,1.12182081]
[1749503546145,1.17389838,663.64,663.25,1.12182081]
[1749503546339,1.17411469,663.64,663.25,1.12182081]
[1749503546545,1.17411469,663.65,663.25,1.12182081]
[1749503546843,0.49653177,663.65,663.26,1.12182081]
[1749503547143,4.28423451,663.66,663.25,1.12182081]
[1749503547341,2.68223451,663.65,663.25,1.12182081]
[1749503547545,1.17411469,663.65,663.08,1.49786835]
[1749503547741,0.496532,663.65,663.08,1.49786835]
[1749503547947,0.49653204,663.65,663.07,1.49786835]
[1749503548142,2.1854896,663.65,663.07,1.49786835]
[1749503548341,1.17411387,663.65,663.07,1.49786835]
[1749503548543,1.17405598,663.65,663.07,1.49786835]
[1749503548745,0.49663238,663.65,663.07,1.49786835]
[1749503548945,2.68201427,663.65,663.07,1.49786835]
[1749503549155,1.17405598,663.65,663.07,1.49786835]
[1749503549344,1.6706881,663.65,663.07,1.49786835]
[1749503549545,1.602,663.66,663.07,1.49786835]
[1749503549951,3.10998256,663.66,663.07,1.49786835]
[1749503550147,2.68395048,663.65,663.07,1.49786835]
[1749503550344,1.602,663.66,663.07,1.49786835]
[1749503550742,4.28597396,663.66,663.07,1.49786835]
[1749503550948,2.68404506,663.65,663.07,1.49786835]
[1749503551159,2.18726085,663.65,663.13,1.49786835]
[1749503551446,1.17596065,663.64,663.13,1.49786835]
[1749503551644,1.67274486,663.65,663.17,1.49786835]
[1749503551944,1.67274486,663.65,663.18,1.49786835]
[1749503552145,1.17596065,663.65,663.18,1.49786835]
[1749503552345,0.49678356,663.65,663.18,1.49786835]
[1749503552547,3.27474421,663.66,663.18,1.49786835]
[1749503552847,1.67274421,663.65,663.17,1.49786835]
[1749503553045,1.17596065,663.65,663.17,1.49786835]
[1749503553253,1.602,663.66,663.17,1.49786835]
[1749503553746,2.0987879,663.66,663.17,1.49786835]
[1749503553946,2.68394913,663.65,663.17,1.49786835]